bitfinex-derivatives/quotes_BTCF0:USTF0_20250905
["timestamp","ask_amount","ask_price","bid_price","bid_amount"]
[1757063774668,0.844937,112560.0,112550.0,1.47873]
[1757063775163,1.32583238,112560.0,112550.0,0.66854]
[1757063775568,1.32583238,112560.0,112550.0,1.47858]
[1757063775768,1.094937,112560.0,112550.0,1.47858]
[1757063776271,1.32583238,112560.0,112550.0,1.47858]
[1757063776570,1.32683238,112560.0,112550.0,1.47858]
[1757063776960,1.32683238,112560.0,112550.0,1.47758]
[1757063781164,1.32683238,112560.0,112550.0,0.66754]
[1757063782460,1.32683238,112560.0,112550.0,0.42754]
[1757063784378,1.32683238,112560.0,112550.0,0.42054]
[1757063786779,1.34713315,112560.0,112550.0,0.42054]
[1757063787671,1.11623777,112560.0,112550.0,0.42054]
[1757063787875,1.34713315,112560.0,112550.0,0.42054]
[1757063788775,2.15701315,112560.0,112550.0,0.42054]
[1757063788975,1.34713315,112560.0,112550.0,0.42054]
[1757063789176,2.15701315,112560.0,112550.0,0.41354]
[1757063789378,2.15701315,112560.0,112550.0,0.39954]
[1757063789581,1.34713315,112560.0,112550.0,0.39954]
[1757063789779,2.15701315,112560.0,112550.0,0.39954]
[1757063790280,1.09713315,112560.0,112550.0,0.39954]
[1757063790480,1.90701315,112560.0,112550.0,0.39954]
[1757063790975,1.90701315,112560.0,112550.0,0.26954]
[1757063794583,2.15701315,112560.0,112550.0,0.26954]
[1757063795788,1.92611777,112560.0,112550.0,0.26954]
[1757063795984,2.15701315,112560.0,112550.0,0.26954]
[1757063798689,1.92611777,112560.0,112550.0,0.26954]
[1757063800688,1.11623777,112560.0,112550.0,0.26954]
[1757063800891,1.92607777,112560.0,112550.0,0.26954]
[1757063803190,1.92607777,112560.0,112550.0,0.26254]
[1757063805194,2.57607777,112560.0,112550.0,0.26254]
[1757063805694,2.57607777,112560.0,112550.0,0.24854]
[1757063805994,2.57607777,112560.0,112550.0,0.24154]
[1757063806812,1.76623777,112560.0,112550.0,0.24154]
[1757063807105,2.57599777,112560.0,112550.0,0.24154]
[1757063807902,2.57599777,112560.0,112550.0,0.21354]
[1757063808207,2.57599777,112560.0,112550.0,0.15764]
[1757063811610,1.76623777,112560.0,112550.0,0.15764]
[1757063811912,2.57595777,112560.0,112550.0,0.15764]
[1757063812210,2.60312219,112560.0,112550.0,0.15764]
[1757063814516,1.79340219,112560.0,112550.0,0.15764]
[1757063814904,2.60312219,112560.0,112550.0,0.15764]
[1757063818324,1.79340219,112560.0,112550.0,0.15764]
[1757063818524,2.60308219,112560.0,112550.0,0.15764]
[1757063821220,2.35308219,112560.0,112550.0,0.15764]
[1757063823125,1.54340219,112560.0,112550.0,0.15764]
[1757063823318,2.35304219,112560.0,112550.0,0.15764]
[1757063823821,2.35304219,112560.0,112540.0,0.0001]
[1757063823822,0.29233216,112550.0,112540.0,0.0001]
[1757063824122,0.0888513,112540.0,112530.0,0.0001]
[1757063824320,0.0888592,112530.0,112520.0,0.01348]
[1757063824618,0.7996592,112530.0,112520.0,0.32338]
[1757063825219,0.7986592,112530.0,112520.0,0.32338]
[1757063825417,0.7986592,112530.0,112520.0,0.34616]
[1757063825620,0.80757742,112530.0,112520.0,0.34616]
[1757063826117,0.87721943,112530.0,112520.0,0.34616]
[1757063826717,0.87721943,112530.0,112520.0,0.34916]
[1757063827122,0.87721943,112530.0,112520.0,0.35216]
[1757063833729,0.87721943,112530.0,112520.0,0.32938]
[1757063834229,0.87721943,112530.0,112520.0,0.35216]
[1757063837835,0.87721943,112530.0,112520.0,0.32938]
[1757063838332,0.87721943,112530.0,112520.0,0.35256]
[1757063842432,0.87721943,112530.0,112520.0,0.32938]
[1757063842624,0.87721943,112530.0,112520.0,0.01938]
[1757063842830,0.87721943,112530.0,112520.0,0.09938]
[1757063844837,0.87721943,112530.0,112520.0,0.12256]
[1757063846338,0.87721943,112530.0,112520.0,0.09938]
[1757063846734,0.87721943,112530.0,112520.0,0.12256]
[1757063848239,1.49721943,112530.0,112520.0,0.006]
[1757063850038,2.30697943,112530.0,112520.0,0.006]
[1757063850545,1.49721943,112530.0,112520.0,0.006]
[1757063850842,2.30697943,112530.0,112520.0,0.006]
[1757063851043,2.33419167,112530.0,112520.0,0.006]
[1757063851342,1.52443167,112530.0,112520.0,0.006]
[1757063851542,2.33419167,112530.0,112520.0,0.006]
[1757063852145,1.52443167,112530.0,112520.0,0.006]
[1757063852344,2.33419167,112530.0,112520.0,0.006]
[1757063854950,1.52443167,112530.0,112520.0,0.006]
[1757063855248,2.33423167,112530.0,112520.0,0.006]
[1757063856250,2.33423167,112530.0,112520.0,0.003]
[1757063856453,0.088867,112520.0,112510.0,0.0001]
[1757063856751,1.15076072,112520.0,112500.0,0.17044]
[1757063856952,1.1706,112510.0,112500.0,0.17034]
[1757063857251,1.5006,112510.0,112500.0,0.17034]
[1757063857650,1.4996,112510.0,112500.0,0.17034]
[1757063858751,1.4986,112510.0,112500.0,0.18034]
[1757063859450,1.4986,112510.0,112500.0,0.18234]
[1757063860152,1.8594,112510.0,112500.0,0.18234]
[1757063860340,1.8594,112510.0,112500.0,0.18434]
[1757063864054,1.9482749,112510.0,112500.0,0.18434]
[1757063864851,1.1404749,112510.0,112500.0,0.18434]
[1757063865051,1.9502749,112510.0,112500.0,0.18434]
[1757063869453,2.5202749,112510.0,112500.0,0.14416]
[1757063870356,1.7104749,112510.0,112500.0,0.14416]
[1757063870556,2.5202749,112510.0,112500.0,0.14416]
[1757063871259,1.7104749,112510.0,112500.0,0.14416]
[1757063871559,2.5202749,112510.0,112500.0,0.14416]
[1757063876164,2.54749376,112510.0,112500.0,0.14416]
[1757063876369,0.0889063,112470.0,112460.0,0.0353]
[1757063876563,1.9803063,112470.0,112460.0,0.3853]
[1757063876962,1.1705063,112470.0,112460.0,0.3853]
[1757063877168,1.9803063,112470.0,112460.0,0.3853]
[1757063879062,2.05080344,112470.0,112460.0,0.3853]
[1757063880372,1.24983815,112470.0,112460.0,0.3853]
[1757063880671,2.05084344,112470.0,112460.0,0.6353]
[1757063880872,1.24100344,112470.0,112460.0,0.6353]
[1757063881267,1.24100344,112470.0,112460.0,0.3853]
[1757063881473,1.24100344,112470.0,112460.0,0.6353]
[1757063884374,1.24100344,112470.0,112460.0,0.3853]
[1757063886171,2.05088344,112470.0,112460.0,0.3853]
[1757063887277,2.05188344,112470.0,112460.0,0.3883]
[1757063887778,1.24200344,112470.0,112460.0,0.3883]
[1757063903488,1.24200344,112470.0,112460.0,0.39274]
[1757063906082,1.24200344,112470.0,112460.0,0.37132]
[1757063906289,1.24200344,112470.0,112460.0,0.39451]
[1757063908797,2.06556344,112470.0,112460.0,0.39451]
[1757063913192,1.24200344,112470.0,112460.0,0.39451]
[1757063926909,1.24200344,112470.0,112460.0,0.37132]
[1757063928610,1.24200344,112470.0,112460.0,0.39241]
[1757063930013,1.24200344,112470.0,112460.0,0.37132]
[1757063930814,1.24200344,112470.0,112460.0,0.39241]
[1757063931708,1.24200344,112470.0,112460.0,0.37132]
[1757063931908,1.24200344,112470.0,112460.0,0.39241]
[1757063933221,2.06768344,112470.0,112460.0,0.39241]
[1757063936623,2.06668344,112470.0,112460.0,0.38941]
[1757063936819,2.07068344,112470.0,112460.0,0.39041]
[1757063937418,2.07068344,112470.0,112460.0,0.38941]
[1757063937624,2.07068344,112470.0,112460.0,0.39041]
[1757063939429,1.24500344,112470.0,112460.0,0.39041]
[1757063939725,2.06980344,112470.0,112460.0,0.39041]
[1757063940125,2.06980344,112470.0,112460.0,0.39341]
[1757063940927,2.06980344,112470.0,112460.0,0.39041]
[1757063941135,2.07280344,112470.0,112460.0,0.39041]
[1757063947930,2.07280344,112470.0,112460.0,0.35544]
[1757063949431,2.07280344,112470.0,112460.0,0.00544]
[1757063957738,2.09280344,112470.0,112460.0,0.00544]
[1757063958039,2.45280344,112470.0,112460.0,0.00544]
[1757063958429,2.70969645,112470.0,112460.0,0.00544]
[1757063959634,1.88489645,112470.0,112460.0,0.00544]
[1757063959838,0.0889219,112450.0,112440.0,0.0001]
[1757063960033,0.0889377,112430.0,112420.0,0.03673]
[1757063960233,1.16110466,112430.0,112420.0,0.40663]
[1757063961440,1.16110466,112430.0,112420.0,0.65663]
[1757063961742,1.16210466,112430.0,112420.0,0.65963]
[1757063962131,1.16110466,112430.0,112420.0,0.65663]
[1757063962433,1.16210466,112430.0,112420.0,0.65663]
[1757063962836,1.98966466,112430.0,112420.0,0.65663]
[1757063963030,1.98966466,112430.0,112420.0,0.65863]
[1757063963641,1.98966466,112430.0,112420.0,0.65663]
[1757063963834,1.16310466,112430.0,112420.0,0.65663]
[1757063964129,1.99058466,112430.0,112420.0,0.65663]
[1757063964543,1.99964823,112430.0,112420.0,0.65663]
[1757063965644,1.17216823,112430.0,112420.0,0.65663]
[1757063965839,1.99928823,112430.0,112420.0,0.65663]
[1757063967443,1.17216823,112430.0,112420.0,0.65663]
[1757063967648,1.99928823,112430.0,112420.0,0.65663]
[1757063969346,1.99928823,112430.0,112420.0,0.38341]
[1757063970749,1.99928823,112430.0,112420.0,0.37]
[1757063973259,2.31928823,112430.0,112420.0,0.37]
[1757063973465,1.42216823,112430.0,112420.0,0.37]
[1757063973762,0.0889454,112420.0,112410.0,0.05657]
[1757063973953,1.6361854,112420.0,112410.0,0.37657]
[1757063974361,0.8097454,112420.0,112410.0,0.37657]
[1757063974561,1.6361054,112420.0,112410.0,0.37657]
[1757063975053,0.8097454,112420.0,112410.0,0.37857]
[1757063975254,1.6361054,112420.0,112410.0,0.37857]
[1757063975964,0.8097454,112420.0,112410.0,0.37857]
[1757063976157,1.6370254,112420.0,112410.0,0.37857]
[1757063976458,0.8097454,112420.0,112410.0,0.37857]
[1757063976661,1.6375454,112420.0,112410.0,0.37857]
[1757063980262,0.8097454,112420.0,112410.0,0.37857]
[1757063980565,1.6371454,112420.0,112410.0,0.37857]
[1757063980967,0.8097454,112420.0,112410.0,0.37857]
[1757063981159,1.6385854,112420.0,112410.0,0.62857]
[1757063985867,0.8097454,112420.0,112410.0,0.62857]
[1757063986160,1.6378654,112420.0,112410.0,0.62857]
[1757063986666,0.8097454,112420.0,112410.0,0.62857]
[1757063986979,0.8097454,112420.0,112410.0,0.37857]
[1757063987466,0.8097454,112420.0,112410.0,0.35535]
[1757063988068,0.8097454,112420.0,112410.0,0.37822]
[1757063988259,0.8097454,112420.0,112410.0,0.35535]
[1757063988458,0.83652257,112420.0,112410.0,0.35535]
[1757063991067,0.83652257,112420.0,112410.0,0.37822]
[1757063992171,0.83652257,112420.0,112410.0,0.35535]
[1757063994474,0.83652257,112420.0,112410.0,0.37822]
[1757063996967,0.83652257,112420.0,112410.0,0.35535]
[1757063997265,0.83652257,112420.0,112410.0,0.37822]
[1757063998368,0.83652257,112420.0,112410.0,0.35535]
[1757063999969,0.83652257,112420.0,112410.0,0.37822]
[1757064000967,0.83652257,112420.0,112410.0,0.35535]
[1757064001159,0.83652257,112420.0,112410.0,0.03535]
[1757064001362,0.83652257,112420.0,112410.0,0.02222]
[1757064002769,1.15652257,112420.0,112410.0,0.02222]
[1757064005073,1.98244257,112420.0,112410.0,0.05905]
[1757064005676,1.98244257,112420.0,112410.0,0.03618]
[1757064005867,1.98244257,112420.0,112410.0,0.02222]
[1757064006069,1.98244257,112420.0,112410.0,0.03618]
[1757064006570,1.98244257,112420.0,112410.0,0.02222]
[1757064008876,1.66244257,112420.0,112410.0,0.02222]
[1757064009775,1.98244257,112420.0,112410.0,0.02222]
[1757064010575,2.23244257,112420.0,112410.0,0.02222]
[1757064011578,1.91244257,112420.0,112410.0,0.02222]
[1757064014481,1.8856654,112420.0,112410.0,0.02222]
[1757064015785,1.0597454,112420.0,112410.0,0.02222]
[1757064015978,1.8898254,112420.0,112410.0,0.02222]
[1757064016479,2.2198254,112420.0,112410.0,0.02222]
[1757064024887,1.9698254,112420.0,112410.0,0.02222]
[1757064025190,1.99661964,112420.0,112410.0,0.02222]
[1757064026290,1.16653964,112420.0,112410.0,0.02222]
[1757064026487,1.21653964,112420.0,112410.0,0.02222]
[1757064026687,2.04509964,112420.0,112410.0,0.05731]
[1757064026981,2.04509964,112420.0,112410.0,0.02222]
[1757064029286,2.29509964,112420.0,112410.0,0.02222]
[1757064034195,1.21653964,112420.0,112410.0,0.02222]
[1757064034386,2.04397964,112420.0,112410.0,0.02222]
[1757064034692,2.04389964,112420.0,112410.0,0.02222]
[1757064035594,0.83653964,112420.0,112410.0,0.04362]
[1757064035794,1.72361964,112420.0,112410.0,0.30731]
[1757064036196,0.89653964,112420.0,112410.0,0.30731]
[1757064036494,1.72365964,112420.0,112410.0,0.30731]
[1757064038395,0.89653964,112420.0,112410.0,0.30731]
[1757064038594,1.72313964,112420.0,112410.0,0.30731]
[1757064038896,0.89653964,112420.0,112410.0,0.30731]
[1757064039097,1.72313964,112420.0,112410.0,0.30731]
[1757064044600,0.89653964,112420.0,112410.0,0.30731]
[1757064044799,1.72245964,112420.0,112410.0,0.30731]
[1757064051108,1.72245964,112420.0,112410.0,0.28709]
[1757064051805,1.97245964,112420.0,112410.0,0.28709]
[1757064052910,1.14653964,112420.0,112410.0,0.28709]
[1757064053208,1.97129964,112420.0,112410.0,0.28709]
[1757064053409,1.9445054,112420.0,112410.0,0.28709]
[1757064054604,0.8097454,112420.0,112410.0,0.03709]
[1757064054810,1.6337054,112420.0,112410.0,0.66709]
[1757064055413,1.6337054,112420.0,112410.0,0.28709]
[1757064057718,1.6337054,112420.0,112410.0,0.33709]
[1757064057919,1.6337054,112420.0,112410.0,0.63709]
[1757064058117,1.6337054,112420.0,112410.0,0.60709]
[1757064058317,1.6337054,112420.0,112410.0,0.32709]
[1757064058718,0.8097454,112420.0,112410.0,0.32709]
[1757064058919,1.6337054,112420.0,112410.0,0.32709]
[1757064059114,1.6333854,112420.0,112410.0,0.28709]
[1757064059309,0.8097454,112420.0,112410.0,0.32709]
[1757064059616,1.6333854,112420.0,112410.0,0.62709]
[1757064060018,1.6333854,112420.0,112410.0,0.28709]
[1757064060213,1.6333854,112420.0,112410.0,0.59709]
[1757064061221,1.6333854,112420.0,112410.0,0.34709]
[1757064061820,1.6333854,112420.0,112410.0,0.03709]
[1757064062021,1.6333854,112420.0,112410.0,0.35709]
[1757064062217,0.8097454,112420.0,112410.0,0.35709]
[1757064062520,1.6330254,112420.0,112410.0,0.35709]
[1757064063021,1.6330254,112420.0,112410.0,0.08709]
[1757064063222,1.6330254,112420.0,112410.0,0.03709]
[1757064064523,1.6330254,112420.0,112410.0,0.08709]
[1757064068623,1.6330254,112420.0,112410.0,0.38709]
[1757064068921,1.6330254,112420.0,112410.0,0.10709]
[1757064069223,1.6330254,112420.0,112410.0,0.39709]
[1757064069426,0.8097454,112420.0,112410.0,0.39709]
[1757064069618,1.6325054,112420.0,112410.0,0.39709]
[1757064069923,1.6325054,112420.0,112410.0,0.10709]
[1757064071126,1.6325054,112420.0,112410.0,0.03709]
[1757064071327,1.6325054,112420.0,112410.0,0.11709]
[1757064071625,1.9933054,112420.0,112410.0,0.11709]
[1757064075431,1.1705454,112420.0,112410.0,0.36709]
[1757064075632,1.1705454,112420.0,112410.0,0.61709]
[1757064098749,1.1705454,112420.0,112410.0,0.36709]
[1757064099247,2.2401454,112420.0,112410.0,0.36709]
[1757064099545,2.2401454,112420.0,112410.0,0.09709]
[1757064101547,2.2401454,112420.0,112410.0,0.36709]
[1757064103445,2.2401454,112420.0,112410.0,0.37153]
[1757064104453,2.2401454,112420.0,112410.0,0.06153]
[1757064104650,2.2401454,112420.0,112410.0,0.04013]
[1757064104849,2.2401454,112420.0,112410.0,0.02644]
[1757064105045,2.2601454,112420.0,112410.0,0.02644]
[1757064105250,2.2601454,112420.0,112410.0,0.00644]
[1757064106052,2.5601454,112420.0,112410.0,0.00644]
[1757064106353,2.5655454,112420.0,112410.0,0.00644]
[1757064109557,2.59118528,112420.0,112410.0,0.00644]
[1757064110453,1.76618528,112420.0,112410.0,0.00644]
[1757064110847,2.59634528,112420.0,112410.0,0.00644]
[1757064111349,2.59634528,112420.0,112390.0,0.0001]
[1757064111350,0.0889616,112400.0,112390.0,0.0001]
[1757064111551,0.0889775,112380.0,112370.0,0.03613]
[1757064111757,1.19152088,112380.0,112370.0,0.39603]
[1757064112054,2.02216088,112380.0,112370.0,0.36]
[1757064112455,2.01916088,112380.0,112370.0,0.36]
[1757064112657,2.01616088,112380.0,112370.0,0.36]
[1757064113056,2.01616088,112380.0,112370.0,0.361]
[1757064113257,2.01616088,112380.0,112370.0,0.362]
[1757064114661,2.01616088,112380.0,112370.0,0.002]
[1757064115360,2.08823045,112380.0,112370.0,0.002]
[1757064116256,2.33823045,112380.0,112370.0,0.002]
[1757064116452,2.36823045,112380.0,112370.0,0.002]
[1757064116652,2.33823045,112380.0,112370.0,0.002]
[1757064116852,2.70823045,112380.0,112370.0,0.002]
[1757064118862,2.08779045,112380.0,112370.0,0.002]
[1757064119963,1.62759045,112380.0,112370.0,0.002]
[1757064120166,1.25759045,112380.0,112370.0,0.03784]
[1757064120359,1.29759045,112380.0,112370.0,0.002]
[1757064121062,1.25759045,112380.0,112370.0,0.002]
[1757064121266,1.62759045,112380.0,112370.0,0.002]
[1757064122163,1.25759045,112380.0,112370.0,0.002]
[1757064122359,1.56759045,112380.0,112370.0,0.002]
[1757064122560,1.88759045,112380.0,112370.0,0.002]
[1757064122856,0.3588,112370.0,112360.0,0.04036]
[1757064123164,1.85844,112370.0,112360.0,0.04036]
[1757064123365,2.10844,112370.0,112360.0,0.04036]
[1757064124258,0.3608,112350.0,112310.0,0.01322]
[1757064124463,0.7216,112320.0,112310.0,0.39584]
[1757064124669,1.0616,112320.0,112310.0,0.39584]
[1757064124966,1.07060758,112320.0,112310.0,0.39584]
[1757064125453,1.07060758,112320.0,112310.0,0.40084]
[1757064126563,1.07360758,112320.0,112310.0,0.40184]
[1757064126960,1.07360758,112320.0,112310.0,0.39684]
[1757064127267,1.23840189,112320.0,112310.0,0.39784]
[1757064127468,1.23840189,112320.0,112310.0,0.37522]
[1757064128681,1.23840189,112320.0,112310.0,0.362]
[1757064128865,2.31908189,112320.0,112310.0,0.002]
[1757064129969,1.23840189,112320.0,112310.0,0.01522]
[1757064130275,1.23840189,112320.0,112310.0,0.03784]
[1757064131467,1.23840189,112320.0,112310.0,0.01522]
[1757064131662,1.23840189,112320.0,112310.0,0.03784]
[1757064135973,1.26401881,112320.0,112310.0,0.03784]
[1757064137076,1.18424192,112320.0,112310.0,0.37784]
[1757064137876,1.18424192,112320.0,112310.0,0.62784]
[1757064140274,1.158625,112320.0,112310.0,0.62784]
[1757064140778,1.158625,112320.0,112310.0,1.46]
[1757064141079,1.158625,112320.0,112310.0,1.46016]
[1757064141480,1.158625,112320.0,112310.0,0.62784]
[1757064141779,1.158625,112320.0,112310.0,1.46008]
[1757064142170,1.158625,112320.0,112310.0,1.45988]
[1757064142372,0.797825,112320.0,112310.0,1.45988]
[1757064143980,0.797825,112320.0,112310.0,0.62784]
[1757064144480,0.797825,112320.0,112310.0,1.46072]
[1757064144681,0.797825,112320.0,112310.0,1.46104]
[1757064146380,0.797825,112320.0,112310.0,0.62784]
[1757064146583,0.797825,112320.0,112310.0,1.46104]
[1757064148482,0.797825,112320.0,112310.0,1.47011762]
[1757064148685,0.797825,112320.0,112310.0,1.46104]
[1757064149681,0.348,112320.0,112310.0,3.1818]
[1757064149882,0.4499174,112330.0,112320.0,0.03578]
[1757064150084,0.7898174,112330.0,112320.0,0.43405376]
[1757064150575,0.34,112330.0,112320.0,0.43405376]
[1757064150773,0.4499101,112340.0,112330.0,0.03578]
[1757064150975,0.8098091,112340.0,112330.0,1.18802]
[1757064151181,0.353,112340.0,112330.0,0.96658]
[1757064151484,0.311,112340.0,112330.0,1.79878]
[1757064151676,0.297,112340.0,112330.0,1.79878]
[1757064151876,0.29,112340.0,112330.0,1.79878]
[1757064152184,0.07,112340.0,112330.0,1.79878]
[1757064152576,0.07,112340.0,112330.0,1.86890206]
[1757064152990,0.07,112340.0,112330.0,2.09890206]
[1757064153177,0.0001,112350.0,112330.0,2.09890206]
[1757064153373,0.2001,112350.0,112340.0,0.3608]
[1757064153575,0.0001,112360.0,112340.0,1.61860245]
[1757064153780,0.4981937,112380.0,112350.0,1.19252]
[1757064153982,0.7592162,112380.0,112360.0,1.7206]
[1757064154181,0.7592162,112380.0,112370.0,0.83176]
[1757064154390,0.7592162,112380.0,112370.0,1.16176]
[1757064154890,0.7592162,112380.0,112370.0,1.17049532]
[1757064155193,0.71145,112380.0,112370.0,1.17049532]
[1757064155385,0.71845,112380.0,112370.0,1.17149532]
[1757064155590,0.35765,112380.0,112370.0,1.17149532]
[1757064155890,0.35765,112380.0,112370.0,0.33973532]
[1757064156090,0.35765,112380.0,112370.0,1.1638]
[1757064156290,0.4466274,112380.0,112370.0,1.1638]
[1757064156688,0.4459774,112380.0,112370.0,1.1638]
[1757064156992,0.357,112380.0,112370.0,1.1638]
[1757064157182,0.4459774,112380.0,112370.0,0.331]
[1757064157378,0.4389774,112380.0,112370.0,1.16236]
[1757064157687,0.4449774,112380.0,112370.0,0.331]
[1757064157894,0.4449774,112380.0,112370.0,1.16344]
[1757064160288,0.356,112380.0,112370.0,0.331]
[1757064160493,0.356,112380.0,112370.0,1.16328]
[1757064165390,0.6348033,112400.0,112370.0,1.99408]
[1757064165391,0.3609,112400.0,112370.0,1.99408]
[1757064165597,0.6709,112400.0,112370.0,1.74408]
[1757064165794,0.6709,112400.0,112380.0,0.3608]
[1757064166098,0.6709,112400.0,112390.0,0.8312]
[1757064166296,0.6708,112400.0,112390.0,1.1512]
[1757064167395,0.6708,112400.0,112390.0,0.32]
[1757064167585,0.6708,112400.0,112390.0,1.1508]
[1757064167998,0.6738,112400.0,112390.0,1.1508]
[1757064168201,0.7627617,112400.0,112390.0,1.22285614]
[1757064168495,1.0448417,112400.0,112390.0,0.32]
[1757064168805,1.0508417,112400.0,112390.0,0.321]
[1757064168991,1.0508417,112400.0,112390.0,0.83696]
[1757064169296,1.0508417,112400.0,112390.0,0.321]
[1757064169498,1.0508417,112400.0,112390.0,1.15152]
[1757064169701,0.316,112400.0,112390.0,1.22173995]
[1757064169895,0.316,112400.0,112390.0,1.47173995]
[1757064171196,0.316,112400.0,112390.0,0.64121995]
[1757064171504,0.316,112400.0,112390.0,1.47157995]
[1757064171997,0.316,112400.0,112390.0,1.47057995]
[1757064171998,0.31,112400.0,112390.0,1.47057995]
[1757064172191,0.31,112400.0,112390.0,1.47049995]
[1757064172599,0.31,112400.0,112390.0,0.64021995]
[1757064172798,0.31,112400.0,112390.0,1.47029995]
[1757064173803,0.31,112400.0,112390.0,1.83109995]
[1757064174101,0.31,112400.0,112390.0,1.58109995]
[1757064174292,0.03,112400.0,112390.0,1.83109995]
[1757064174604,0.0002,112410.0,112390.0,2.40109995]
[1757064174806,0.3102,112410.0,112400.0,0.3608]
[1757064175005,0.31,112410.0,112400.0,0.75878189]
[1757064177405,0.6708,112410.0,112400.0,0.39798189]
[1757064177704,0.95588,112410.0,112400.0,1.23282189]
[1757064177903,0.95688,112410.0,112400.0,1.23282189]
[1757064178411,0.95588,112410.0,112400.0,1.22682189]
[1757064178606,0.95588,112410.0,112400.0,1.22982189]
[1757064178808,0.95588,112410.0,112400.0,1.23046189]
[1757064179311,0.95588,112410.0,112400.0,1.22946189]
[1757064180106,0.95588,112410.0,112400.0,1.22902189]
[1757064180802,0.95688,112410.0,112400.0,1.23602189]
[1757064181408,0.70588,112410.0,112400.0,0.39798189]
[1757064181597,0.70688,112410.0,112400.0,1.23482189]
[1757064181797,0.70692,112410.0,112400.0,1.23482189]
[1757064182303,0.7958737,112410.0,112400.0,1.23474189]
[1757064183712,0.7958737,112410.0,112400.0,0.40598189]
[1757064183911,0.7958737,112410.0,112400.0,1.23442189]
[1757064184711,1.0458737,112410.0,112400.0,1.23418189]
[1757064185416,1.0458737,112410.0,112400.0,0.40598189]
[1757064186505,1.8745537,112410.0,112400.0,0.40598189]
[1757064187311,1.8745537,112410.0,112400.0,0.02598189]
[1757064187614,1.8743137,112410.0,112400.0,0.018]
[1757064190320,1.0458737,112410.0,112400.0,0.018]
[1757064190615,1.8743537,112410.0,112400.0,0.018]
[1757064191011,0.124049,112390.0,112380.0,0.04055621]
[1757064191217,1.175649,112390.0,112380.0,0.39055621]
[1757064191615,1.175649,112390.0,112380.0,0.37239]
[1757064192021,1.425649,112390.0,112380.0,0.37239]
[1757064192211,1.425649,112390.0,112380.0,0.353]
[1757064192418,2.255329,112390.0,112380.0,0.153]
[1757064192618,2.255209,112390.0,112380.0,0.153]
[1757064193925,2.256209,112390.0,112380.0,0.154]
[1757064194420,2.256209,112390.0,112380.0,0.147]
[1757064194617,0.1240647,112370.0,112360.0,0.0177997]
[1757064194823,1.9747447,112370.0,112360.0,0.4104397]
[1757064195816,1.9767447,112370.0,112360.0,0.4154397]
[1757064197626,1.1476647,112370.0,112360.0,0.4154397]
[1757064197925,1.9762647,112370.0,112360.0,0.4154397]
[1757064198420,1.9761447,112370.0,112360.0,0.4154397]
[1757064198730,1.1476647,112370.0,112360.0,0.4154397]
[1757064199127,1.9769047,112370.0,112360.0,0.3927997]
[1757064199530,2.2269047,112370.0,112360.0,0.3927997]
[1757064200534,2.2269047,112370.0,112360.0,0.375]
[1757064200734,2.24748531,112370.0,112360.0,0.375]
[1757064201835,2.24748531,112370.0,112360.0,0.135]
[1757064203134,2.24660531,112370.0,112360.0,0.135]
[1757064206437,1.41824531,112370.0,112360.0,0.135]
[1757064206630,2.24636531,112370.0,112360.0,0.135]
[1757064207239,2.24604531,112370.0,112360.0,0.135]
[1757064208138,1.41824531,112370.0,112360.0,0.135]
[1757064208340,2.24592531,112370.0,112360.0,0.135]
[1757064211347,2.56592531,112370.0,112360.0,0.128]
[1757064211640,0.1252106,112350.0,112340.0,0.01780245]
[1757064211848,1.9780906,112350.0,112340.0,0.29927245]
[1757064212742,1.9780906,112350.0,112340.0,0.27780245]
[1757064213044,1.9790906,112350.0,112340.0,0.28480245]
[1757064213745,1.1478106,112350.0,112340.0,0.30627245]
[1757064214140,1.9788506,112350.0,112340.0,0.30627245]
[1757064214455,1.9788506,112350.0,112320.0,0.6599]
[1757064214642,0.1252405,112310.0,112300.0,0.13293866]
[1757064214846,0.7860405,112310.0,112300.0,0.50988866]
[1757064215656,0.7810405,112310.0,112300.0,0.50988866]
[1757064216458,0.7478305,112310.0,112300.0,0.58996684]
[1757064218259,0.7478305,112310.0,112300.0,0.83996684]
[1757064219958,0.7478305,112310.0,112300.0,1.13996684]
[1757064221969,0.303,112310.0,112300.0,1.50076684]
[1757064222163,0.3920318,112310.0,112300.0,1.38929818]
[1757064224271,0.3920318,112310.0,112300.0,1.13929818]
[1757064227376,0.3900318,112310.0,112300.0,1.13929818]
[1757064227672,0.7518318,112310.0,112300.0,0.77849818]
[1757064228175,0.7548318,112310.0,112300.0,0.77149818]
[1757064232278,0.7548318,112310.0,112300.0,1.60053818]
[1757064232574,0.6658,112310.0,112300.0,1.60053818]
[1757064232778,0.7548318,112310.0,112300.0,1.60053818]
[1757064233479,0.3940319,112310.0,112300.0,1.85053818]
[1757064233772,0.3940319,112310.0,112300.0,1.02149818]
[1757064233973,0.3940319,112310.0,112300.0,1.85029818]
[1757064234179,0.3940319,112310.0,112300.0,1.02149818]
[1757064234381,0.3940319,112310.0,112300.0,1.85009818]
[1757064234982,0.305,112310.0,112300.0,1.85009818]
[1757064235184,0.305,112310.0,112300.0,2.21089818]
[1757064235379,0.305,112310.0,112300.0,2.21065818]
[1757064235576,0.085,112310.0,112300.0,2.21065818]
[1757064235777,0.07,112310.0,112300.0,2.21065818]
[1757064235973,0.0561,112310.0,112300.0,2.21065818]
[1757064236277,0.201,112310.0,112300.0,2.21045818]
[1757064236772,0.0891245,112320.0,112300.0,2.21045818]
[1757064236974,0.4491245,112320.0,112300.0,2.21045818]
[1757064237977,0.0311,112320.0,112300.0,2.21045818]
[1757064238177,0.3511,112320.0,112300.0,1.38229818]
[1757064238483,0.3521,112320.0,112310.0,0.82904]
[1757064238683,0.352,112320.0,112310.0,1.17727731]
[1757064239182,0.352,112320.0,112310.0,1.47727731]
[1757064239388,0.441024,112320.0,112310.0,0.64823731]
[1757064239581,0.441024,112320.0,112310.0,1.47819731]
[1757064239781,0.352,112320.0,112310.0,1.47819731]
[1757064241587,0.002,112320.0,112310.0,1.83999731]
[1757064241887,0.202,112320.0,112310.0,1.83999731]
[1757064242276,0.212,112320.0,112310.0,1.83999731]
[1757064242579,0.212,112320.0,112310.0,2.09999731]